bitfinex-derivatives/quotes_SOLF0:USTF0_20250924
["timestamp","ask_amount","ask_price","bid_price","bid_amount"]
[1758684423843,4.2502,211.67,211.59,7.8]
[1758684424047,68.0824,211.68,211.55,7.8]
[1758684424248,3.18945871,211.67,211.55,7.8]
[1758684424453,3.18945871,211.66,211.55,7.8]
[1758684424642,3.18945871,211.65,211.55,7.8]
[1758684424842,1.97,211.68,211.56,4.2523]
[1758684425151,3.19273095,211.67,211.57,7.8]
[1758684425453,1.97,211.68,211.57,7.8]
[1758684425750,3.19547527,211.67,211.57,7.8]
[1758684425950,3.19547076,211.66,211.57,7.8]
[1758684426150,68.0819,211.68,211.57,7.8]
[1758684426358,4.2504,211.66,211.57,7.8]
[1758684426549,3.19571872,211.65,211.57,7.8]
[1758684429355,1.97,211.64,211.52,4.2531]
[1758684429552,3.19571872,211.63,211.51,7.8]
[1758684429755,68.11,211.59,211.44,7.8]
[1758684430055,3.20565086,211.58,211.45,7.8]
[1758684430257,68.11,211.59,211.45,7.8]
[1758684430455,3.20532973,211.58,211.45,7.8]
[1758684430656,7.4573338,211.57,211.45,7.8]
[1758684430856,3.2051338,211.56,211.45,7.8]
[1758684431157,4.2527,211.55,211.45,7.8]
[1758684431755,1.97,211.61,211.45,7.8]
[1758684432054,1.97,211.59,211.45,7.8]
[1758684432251,3.20476767,211.58,211.45,7.8]
[1758684432758,66.1458,211.57,211.39,7.8]
[1758684432955,1.97,211.55,211.39,7.8]
[1758684433159,4.253,211.53,211.39,12.0556]
[1758684433350,4.253,211.53,211.39,79.0156]
[1758684433660,6.2229,211.54,211.41,4.2553]
[1758684434248,4.2532,211.52,211.39,74.76]
[1758684434456,4.2532,211.52,211.39,7.8]
[1758684435658,4.2536,211.5,211.39,7.8]
[1758684436554,1.94,211.47,211.39,7.8]
[1758684436853,1.94,211.47,211.33,7.34]
[1758684436854,3.20129882,211.46,211.33,7.34]
[1758684437059,1.94,211.45,211.34,66.2167]
[1758684437364,1.94,211.45,211.35,7.34]
[1758684441051,16.40994277,211.45,211.35,11.5965]
[1758684441252,1.94,211.45,211.35,11.5965]
[1758684442155,4.2539,211.49,211.37,4.2561]
[1758684442358,1.94,211.5,211.38,73.5432]
[1758684442560,15.98262056,211.5,211.39,7.34]
[1758684442762,1.94,211.55,211.41,7.34]
[1758684442960,3.19650475,211.54,211.41,7.34]
[1758684443157,1.94,211.55,211.41,7.34]
[1758684443358,1.94,211.55,211.43,7.83]
[1758684444363,16.03883218,211.55,211.43,7.83]
[1758684444858,16.03883218,211.55,211.45,4.2545]
[1758684445963,39.15366729,211.6,211.47,7.83]
[1758684446160,3.19901041,211.59,211.48,66.1736]
[1758684446361,39.15366729,211.6,211.48,66.1736]
[1758684446765,1.97,211.6,211.48,66.1736]
[1758684446965,16.31490335,211.6,211.51,4.2533]
[1758684447167,1.97,211.6,211.51,4.2533]
[1758684447464,6.2216,211.6,211.5,7.83]
[1758684449966,20.38795372,211.6,211.5,7.83]
[1758684450561,1.97,211.57,211.45,12.0844]
[1758684453059,6.2224,211.56,211.45,12.0844]
[1758684453267,6.2224,211.56,211.45,7.83]
[1758684454060,4.2528,211.54,211.45,7.83]
[1758684454264,1.97,211.53,211.45,7.83]
[1758684456368,1.97,211.53,211.41,12.0853]
[1758684458269,1.97,211.53,211.44,7.83]
[1758684460268,4.2532,211.52,211.44,7.83]
[1758684461969,1.97,211.53,211.44,7.83]
[1758684462165,14.16635372,211.6,211.44,7.83]
[1758684462372,1.97,211.59,211.44,7.83]
[1758684463775,6.2218,211.59,211.47,4.2541]
[1758684463973,6.2218,211.59,211.48,7.83]
[1758684464568,1.97,211.56,211.4,7.83]
[1758684464775,1.97,211.55,211.4,7.83]
[1758684465776,4.2532,211.53,211.42,4.255]
[1758684465976,4.2532,211.53,211.43,7.83]
[1758684466377,1.97,211.55,211.43,7.83]
[1758684466772,7.18,211.34,211.23,0.54248115]
[1758684466974,66.2272,211.31,211.17,29.44096134]
[1758684467169,66.2395,211.27,211.17,29.44096134]
[1758684467369,7.18,211.18,211.0,2.1]
[1758684467572,3.27676353,211.08,210.84,66.3716]
[1758684467777,3.27676353,211.05,210.84,70.6384]
[1758684467978,78.5420197,211.04,210.79,66.3895]
[1758684468177,66.3198,211.02,210.79,66.3895]
[1758684468378,10.45676353,211.0,210.82,70.6472]
[1758684468572,1.77178305,210.99,210.86,66.3666]
[1758684468780,80.4346,211.13,210.91,7.83]
[1758684468781,7.18,211.06,210.91,7.83]
[1758684468976,1.69934257,211.05,210.91,7.83]
[1758684469176,1.69934257,211.05,210.85,131.02]
[1758684469177,14.15,211.02,210.66,66.4308]
[1758684469382,10.45676353,210.94,210.72,66.4119]
[1758684469679,1.69934257,210.93,210.78,66.3928]
[1758684469878,1.69934257,210.92,210.78,66.3928]
[1758684470080,1.69934257,210.91,210.78,198.7509]
[1758684470284,1.69934257,210.9,210.76,32.41901776]
[1758684470482,1.69934257,210.89,210.76,32.41901776]
[1758684470685,3.27676353,210.97,210.81,66.3825]
[1758684470874,7.18,210.98,210.79,66.3898]
[1758684471079,357.58,211.02,210.87,66.3642]
[1758684471282,7.18,211.04,210.86,7.83]
[1758684471582,7.18,211.04,210.88,7.83]
[1758684472486,7.18,210.99,210.81,7.83]
[1758684472790,3.27676353,211.04,210.89,7.83]
[1758684472983,7.18,211.03,210.89,7.83]
[1758684474193,7.18,211.03,210.92,66.3482]
[1758684474394,7.18,211.03,210.92,70.6135]
[1758684474687,37.54175614,211.06,210.96,66.3359]
[1758684474889,7.19,211.09,210.94,7.58]
[1758684475082,7.19,211.04,210.86,7.58]
[1758684475693,7.19,211.04,210.89,66.3578]
[1758684475887,7.19,211.04,210.91,73.9306]
[1758684476794,3.27676353,211.08,210.97,66.3315]
[1758684476986,40.56333999,211.08,210.86,66.3676]
[1758684477188,40.56333999,211.08,210.83,66.376]
[1758684477189,7.19,211.02,210.87,7.58]
[1758684477388,7.19,211.02,210.91,66.3515]
[1758684477587,7.19,211.07,210.95,66.3372]
[1758684477788,7.19,211.07,210.95,70.6019]
[1758684477990,7.19,211.07,210.94,7.58]
[1758684478187,7.19,211.07,210.95,66.3394]
[1758684478585,7.19,211.07,210.95,70.6041]
[1758684478896,7.19,211.07,210.94,7.58]
[1758684479298,7.19,211.07,210.89,7.58]
[1758684479299,7.19,211.02,210.89,7.58]
[1758684479492,134.22,211.01,210.89,7.58]
[1758684479889,7.19,210.97,210.83,7.58]
[1758684480189,7.19,210.97,210.79,66.3898]
[1758684480389,7.19,210.92,210.78,7.58]
[1758684480594,134.32,210.91,210.72,358.08]
[1758684480891,7.19,210.9,210.77,7.58]
[1758684481090,7.19,210.9,210.81,66.3831]
[1758684481295,7.19,210.96,210.85,66.3702]
[1758684481494,358.16,210.99,210.87,66.3645]
[1758684481790,7.19,210.98,210.8,7.58]
[1758684481995,66.2199,211.34,211.06,66.3049]
[1758684482194,3.27676353,211.22,211.08,7.58]
[1758684482399,7.19,211.16,211.0,7.58]
[1758684482596,7.19,211.16,210.68,199.266]
[1758684482890,7.19,211.12,210.94,3.27676353]
[1758684483096,136.5,211.11,210.94,10.85676353]
[1758684483398,7.19,211.12,210.97,70.5944]
[1758684483602,8.88,211.2,211.05,66.3076]
[1758684483802,358.26,211.26,211.1,66.2924]
[1758684484295,358.26,211.26,211.08,7.58]
[1758684484296,7.19,211.25,211.08,7.58]
[1758684484498,7.19,210.95,210.75,7.58]
[1758684484693,7.19,210.94,210.75,7.58]
[1758684484891,65.17676353,210.93,210.75,7.58]
[1758684485098,144.93676353,210.93,210.75,7.58]
[1758684485802,3.27676353,210.93,210.75,7.58]
[1758684486002,141.58,210.92,210.75,7.58]
[1758684486603,3.27676353,210.88,210.75,7.58]
[1758684486800,3.27676353,210.88,210.67,105.76]
[1758684487109,3.27676353,210.88,210.68,7.58]
[1758684487299,141.42,210.87,210.68,7.58]
[1758684487502,10.46676353,210.89,210.74,7.58]
[1758684487695,7.19,210.89,210.74,7.58]
[1758684488605,141.44,210.88,210.74,7.58]
[1758684489203,7.19,210.87,210.73,13.6711695]
[1758684489398,66.37,210.86,210.73,13.6711695]
[1758684489603,66.3713,210.85,210.73,13.6711695]
[1758684489804,5.51998482,210.81,210.73,13.6711695]
[1758684489998,141.48,210.8,210.73,13.6711695]
[1758684490196,5.51998482,210.86,210.73,13.6711695]
[1758684490197,129.51998482,210.86,210.73,13.6711695]
[1758684490501,142.18,210.85,210.73,13.6711695]
[1758684490901,128.2661,210.88,210.73,13.6711695]
[1758684491107,142.06,210.87,210.73,13.6711695]
[1758684491405,66.3556,210.9,210.73,13.6711695]
[1758684491603,66.3843,210.81,210.73,13.6711695]
[1758684491803,142.04,210.8,210.73,13.6711695]
[1758684492005,142.2,210.79,210.73,13.6711695]
[1758684492202,4.2675,210.81,210.73,13.6711695]
[1758684492505,142.7,210.8,210.73,13.6711695]
[1758684492709,142.22,210.8,210.73,13.6711695]
[1758684492906,71.1386,210.79,210.63,7.58]
[1758684493107,70.6586,210.79,210.63,7.58]
[1758684493306,358.5,210.82,210.53,66.4711]
[1758684493607,142.08,210.81,210.56,7.33]
[1758684493808,208.4642,210.81,210.56,7.33]
[1758684494009,358.5,210.82,210.58,7.33]
[1758684494205,66.3905,210.79,210.58,7.33]
[1758684494398,208.4045,210.81,210.58,7.33]
[1758684494604,66.3932,210.78,210.58,7.33]
[1758684494807,70.6615,210.78,210.58,7.33]
[1758684495408,141.88,210.77,210.58,7.33]
[1758684495608,66.4112,210.73,210.48,7.33]
[1758684496002,141.82,210.72,210.48,7.33]
[1758684496211,141.86,210.71,210.52,7.33]
[1758684496413,141.82,210.7,210.52,7.33]
[1758684496611,19.66998482,210.75,210.53,7.33]
[1758684496813,90.34268482,210.75,210.53,7.33]
[1758684497010,14.38284056,210.75,210.55,7.33]
[1758684497203,76.17558482,210.8,210.57,7.33]
[1758684497408,141.78,210.79,210.57,7.33]
[1758684497609,66.3996,210.76,210.57,7.33]
[1758684498112,14.15,210.79,210.57,7.33]
[1758684498413,208.153,210.78,210.57,7.33]
[1758684498613,222.38726842,210.78,210.57,7.33]
[1758684499111,66.406,210.74,210.57,7.33]
[1758684499306,80.5494,210.76,210.57,7.33]
[1758684499511,141.64,210.75,210.57,7.33]
[1758684500619,208.0435,210.75,210.57,7.33]
[1758684500916,141.44,210.74,210.57,11.6023]
[1758684501116,141.4,210.73,210.57,7.33]
[1758684501419,4.2684,210.77,210.57,7.33]
[1758684501715,14.15,210.82,210.6,7.33]
[1758684501917,141.26,210.81,210.62,7.33]
[1758684502114,141.26,210.81,210.57,66.4588]
[1758684502115,66.4507,210.6,210.35,7.33]
[1758684502309,66.4597,210.57,210.35,7.33]
[1758684502506,150.4127,210.56,210.35,7.33]
[1758684502710,5.51998482,210.66,210.42,73.8362]
[1758684502913,151.69998482,210.66,210.45,7.33]
[1758684503813,151.69998482,210.66,210.43,146.42]
[1758684503814,14.15,210.71,210.47,7.4]
[1758684504118,66.4434,210.62,210.47,7.4]
[1758684504416,146.34,210.61,210.47,7.4]
[1758684505013,66.4343,210.65,210.47,7.4]
[1758684505206,19.66998482,210.66,210.47,7.4]
[1758684505408,213.0944,210.65,210.39,41.58]
[1758684505614,66.4774,210.51,210.34,22.93505901]
[1758684505813,66.5065,210.42,210.34,22.93505901]
[1758684506020,66.4964,210.45,210.34,22.93505901]
[1758684506220,66.4948,210.46,210.34,22.93505901]
[1758684506613,364.43998482,210.5,210.34,22.93505901]
[1758684506808,435.19478482,210.5,210.34,22.93505901]
[1758684507018,150.2,210.49,210.34,22.93505901]
[1758684507615,66.4888,210.48,210.34,22.93505901]
[1758684508021,164.35,210.49,210.34,22.93505901]
[1758684508220,358.92,210.5,210.34,22.93505901]
[1758684508221,150.02,210.48,210.34,22.93505901]
[1758684508421,358.92,210.5,210.34,22.93505901]
[1758684508618,149.94,210.49,210.34,22.93505901]
[1758684508822,358.92,210.5,210.34,22.93505901]
[1758684509013,149.9,210.49,210.34,22.93505901]
[1758684510221,149.54,210.48,210.34,22.93505901]
[1758684510527,358.92,210.5,210.35,7.4]
[1758684510914,0.74560836,210.51,210.35,7.4]
[1758684511221,0.74560836,210.51,210.36,7.4]
[1758684511423,43.04,210.56,210.36,7.4]
[1758684511618,1.18801541,210.55,210.36,7.4]
[1758684511819,4.2717,210.6,210.37,70.7972]
[1758684512120,150.42773028,210.59,210.38,7.4]
[1758684512321,1.18772233,210.58,210.41,4.2754]
[1758684512522,359.1,210.62,210.42,7.4]
[1758684512523,149.06,210.61,210.42,7.4]
[1758684512716,1.18758432,210.6,210.42,7.4]
[1758684512920,359.1,210.62,210.42,7.4]
[1758684513124,4.2705,210.66,210.44,7.4]
[1758684513425,1.18748338,210.65,210.5,66.4804]
[1758684513726,66.3994,210.76,210.54,7.4]
[1758684513727,4.2688,210.75,210.54,7.4]
[1758684514128,66.4081,210.73,210.54,7.4]
[1758684514328,70.6774,210.73,210.54,7.4]
[1758684514622,66.41,210.73,210.54,7.4]
[1758684514832,66.4327,210.66,210.46,7.4]
[1758684515120,148.86,210.65,210.46,7.4]
[1758684515325,373.87797637,210.97,210.64,7.4]
[1758684515527,373.87797637,210.97,210.61,5.51998482]
[1758684515528,66.3395,210.95,210.71,7.4]
[1758684515722,70.6173,210.91,210.71,7.4]
[1758684515928,66.3467,210.93,210.71,7.4]
[1758684515929,66.3768,210.83,210.71,7.4]
[1758684516224,149.78,210.82,210.71,7.4]
[1758684516429,149.74,210.81,210.71,7.4]
[1758684517019,149.74,210.8,210.71,7.4]
[1758684517718,70.6466,210.83,210.71,7.4]
[1758684517920,149.48,210.82,210.71,7.4]
[1758684518116,149.48,210.82,210.61,513.1914]
[1758684518117,66.3904,210.79,210.62,7.4]
[1758684518621,66.3706,210.85,210.63,7.4]
[1758684518821,66.3706,210.85,210.65,7.4]
[1758684519032,149.14,210.84,210.65,7.4]
[1758684519528,149.04,210.84,210.68,7.4]
[1758684519725,66.3615,210.88,210.68,7.4]
[1758684519925,148.96,210.87,210.68,7.4]
[1758684520225,66.3615,210.88,210.68,7.4]
[1758684520428,148.9,210.86,210.68,7.4]
[1758684520627,66.3615,210.88,210.68,7.4]
[1758684520828,70.6276,210.88,210.68,7.4]
[1758684521028,66.3676,210.86,210.68,7.4]
[1758684521425,66.3816,210.82,210.68,7.4]
[1758684521626,66.3816,210.82,210.58,66.4544]
[1758684521627,66.3993,210.76,210.56,7.4]
[1758684521933,66.3993,210.76,210.51,66.4768]
[1758684521934,4.2684,210.77,210.58,7.4]
[1758684522122,219.5845,210.77,210.58,7.4]
[1758684522322,4.2708,210.65,210.41,7.4]
[1758684522526,98.12,210.66,210.46,7.4]
[1758684522722,66.4339,210.65,210.46,7.4]
[1758684523234,66.4406,210.63,210.46,7.4]
[1758684523430,66.478,210.51,210.31,7.4]
[1758684523630,66.4846,210.49,210.31,7.4]
[1758684523823,66.4979,210.45,210.31,7.4]
[1758684524025,66.4968,210.45,210.31,7.4]
[1758684524228,4.2749,210.44,210.31,7.4]
[1758684524936,154.74,210.47,210.31,7.4]
[1758684525137,70.7617,210.48,210.31,7.4]
[1758684525738,221.0462,210.55,210.35,7.4]
[1758684525929,5.51998482,210.59,210.36,66.5246]
[1758684526134,224.1835439,210.58,210.37,7.4]
[1758684526328,220.9154,210.58,210.37,7.4]
[1758684526533,4.2722,210.58,210.39,7.4]
[1758684526733,154.38,210.57,210.39,7.4]
[1758684526934,4.2722,210.58,210.39,7.4]
[1758684527134,3.27522727,210.57,210.41,7.4]
[1758684527434,154.18,210.6,210.43,7.4]
[1758684527635,363.2314,210.62,210.44,4.2749]
[1758684527836,517.2514,210.62,210.44,70.7731]
[1758684528035,358.96,210.62,210.44,70.7731]
[1758684528236,358.96,210.62,210.45,7.4]
[1758684528429,358.96,210.62,210.46,70.7673]
[1758684529137,3.2902246,210.61,210.46,70.7673]
[1758684529338,70.7049,210.65,210.47,7.4]
[1758684529539,3.29089393,210.64,210.47,7.4]
[1758684529839,3.29089393,210.63,210.48,70.7603]
[1758684530045,4.2708,210.65,210.49,7.4]
[1758684530241,3.29108483,210.64,210.49,7.4]
[1758684530441,3.29108483,210.63,210.49,7.4]
[1758684530638,153.5,210.67,210.5,70.7531]
[1758684530842,3.29339777,210.66,210.5,70.7531]
[1758684531040,3.29339777,210.65,210.49,7.4]
[1758684531342,3.29339777,210.64,210.49,11.6739]
[1758684531534,3.29339777,210.63,210.49,11.6739]
[1758684531733,4.2707,210.66,210.49,11.6739]
[1758684531938,66.5163,210.39,210.07,7.86891803]
[1758684532135,3.29093063,210.38,210.15,66.5914]
[1758684532338,69.81358718,210.37,210.14,6.78791559]
[1758684532538,3.29077918,210.36,210.17,4.2803]
[1758684532740,66.5136,210.4,210.17,4.2803]
[1758684532936,3.29082807,210.39,210.17,4.2803]
[1758684533144,7.56702807,210.38,210.19,70.8584]
[1758684533339,3.29082807,210.37,210.19,70.8584]
[1758684533643,4.2768,210.35,210.17,4.2804]
[1758684533836,4.2768,210.35,210.17,70.8654]
[1758684534038,66.5046,210.43,210.22,7.78]
[1758684534239,66.5097,210.41,210.22,74.3487]
[1758684534436,3.28983891,210.4,210.22,74.3487]
[1758684534637,3.28983891,210.39,210.22,74.3487]
[1758684534836,3.28914849,210.38,210.22,74.3487]
[1758684535041,66.5221,210.37,210.22,7.78]
[1758684535240,3.28695836,210.36,210.22,7.78]
[1758684535437,66.5467,210.3,210.17,359.14]
[1758684535642,66.5467,210.3,210.14,7.78]
[1758684535843,66.5386,210.32,210.14,7.78]
[1758684536038,66.5328,210.34,210.14,74.3731]
[1758684536344,66.5353,210.33,210.14,74.3731]
[1758684536550,70.8165,210.32,210.14,78.6541]
[1758684537150,4.2774,210.32,210.16,4.2804]
[1758684537351,70.8063,210.35,210.17,7.78]
[1758684537852,4.2762,210.38,210.18,70.8618]
[1758684538151,66.5222,210.37,210.2,7.78]
[1758684538346,66.5257,210.36,210.2,7.78]
[1758684538854,4.2767,210.36,210.21,155.54]
[1758684540551,66.4974,210.45,210.23,74.343]
[1758684540753,66.4843,210.49,210.29,66.5451]
[1758684540948,70.763,210.48,210.31,7.78]
[1758684541144,0.82739928,210.47,210.31,7.78]
[1758684542045,0.82739928,210.47,210.32,4.2773]
[1758684542454,66.4632,210.56,210.38,7.78]
[1758684542852,0.8271043,210.54,210.38,7.78]
[1758684543158,71.5697043,210.54,210.38,7.78]
[1758684544047,71.5697043,210.54,210.39,154.42]
[1758684544255,70.7488,210.52,210.39,154.42]
[1758684545254,4.2735,210.52,210.39,154.42]
[1758684545961,0.8271043,210.54,210.39,158.6959]
[1758684546460,4.2731,210.53,210.39,154.42]
[1758684546655,70.745,210.53,210.39,154.42]
[1758684546848,0.8271043,210.54,210.39,154.42]
[1758684547063,5.1001043,210.54,210.39,154.42]
[1758684547259,14.15,210.29,210.0,2.04]
[1758684547561,70.9133,210.03,209.82,66.695]
[1758684547761,66.6304,210.03,209.87,101.58]
[1758684547955,66.6044,210.11,209.87,101.58]
[1758684548152,66.598,210.13,209.85,70.9725]
[1758684548354,66.6155,210.08,209.81,14.17]
[1758684548560,8.89101042,210.15,209.92,45.22]
[1758684549058,66.5732,210.21,209.93,105.03363062]
[1758684549257,8.89101042,210.22,209.95,7.78]
[1758684549561,75.46131042,210.22,209.95,7.78]
[1758684549762,8.89101042,210.22,209.95,7.78]
[1758684550058,4.2791,210.24,209.99,7.78]
[1758684550258,4.2791,210.24,209.98,66.6446]
[1758684550259,4.41579973,210.23,209.98,10.73571323]
[1758684550463,14.17,210.21,209.98,10.73571323]
[1758684550661,14.17,210.21,209.91,13.83789108]
[1758684550662,66.6183,210.07,209.91,13.83789108]
[1758684550858,66.6011,210.12,209.91,13.83789108]
[1758684551063,80.7447,210.14,209.91,13.83789108]
[1758684551365,66.6232,210.05,209.91,13.83789108]
[1758684551558,8.89101042,210.16,209.91,13.83789108]
[1758684551559,66.6034,210.11,209.91,13.83789108]
[1758684551758,66.6221,210.06,209.91,13.83789108]
[1758684551963,75.51311042,210.06,209.91,13.83789108]
[1758684552162,66.6202,210.06,209.91,13.83789108]
[1758684552371,66.7079,209.79,209.68,7.78]
[1758684552564,66.6876,209.85,209.52,108.14178704]
[1758684552565,66.7278,209.72,209.57,7.78]
[1758684552866,66.7215,209.74,209.52,41.35318704]
[1758684552867,66.7567,209.63,209.52,41.35318704]
[1758684553065,133.5666,209.55,209.52,18.61264838]
[1758684553266,66.7894,209.53,209.52,4.838e-05]
[1758684553468,66.7978,209.5,209.41,30.73234443]
[1758684553668,14.15,209.57,209.41,30.73234443]
[1758684553861,14.15,209.57,209.2,128.8922]
[1758684553862,66.827,209.41,209.11,7.52]
[1758684554066,14.15,209.39,209.11,7.52]
[1758684554268,66.8585,209.31,209.09,14.00461266]
[1758684554466,14.15,209.28,209.09,14.00461266]
[1758684554663,66.8743,209.26,209.09,14.00461266]
[1758684554868,8.89101042,209.13,209.0,2.1]
[1758684555070,81.0815,209.08,209.0,2.1]
[1758684555263,66.986,208.91,208.53,7.52]
[1758684555465,66.9895,208.9,208.55,67.0995]
[1758684555667,67.0149,208.82,208.47,67.1264]
[1758684555870,67.0021,208.86,208.49,67.1181]
[1758684556072,67.0062,208.85,208.59,7.52]
[1758684556271,67.0062,208.85,208.35,7.52]
[1758684556272,67.0709,208.65,208.35,7.52]
[1758684556468,67.0968,208.57,208.28,50.28735632]
[1758684556670,256.7108,208.65,208.53,6.72]
[1758684556970,67.0895,208.59,208.3,7.52]
[1758684557170,67.1087,208.53,208.44,6.72]
[1758684557367,67.1566,208.38,208.27,14.17133424]
[1758684557567,67.1873,208.29,208.0,2.0]
[1758684557873,67.2119,208.21,208.0,2.0]
[1758684558073,67.2656,208.05,208.0,2.0]
[1758684558278,67.2956,207.95,207.61,8.89101042]
[1758684558470,14.4491786,208.06,207.45,70.58152499]
[1758684558674,67.3293,207.85,207.52,67.4346]
[1758684558874,67.3234,207.87,207.51,67.435]
[1758684558875,67.3314,207.84,207.51,67.435]
[1758684559071,8.89101042,207.77,207.47,67.4499]
[1758684559273,8.89101042,207.77,207.45,138.03602499]
[1758684559274,67.3389,207.82,207.5,67.4401]
[1758684559471,67.3293,207.85,207.48,67.4469]
[1758684559472,8.89101042,207.85,207.57,67.416]
[1758684559674,8.89101042,207.77,207.51,67.4371]
[1758684559972,8.89101042,207.77,207.52,67.4322]
[1758684560168,208.78,207.85,207.57,7.52]
[1758684560471,67.324,207.87,207.57,7.52]
[1758684560676,67.3329,207.84,207.68,0.96]
[1758684560874,67.3218,207.87,207.57,74.9378]
[1758684561067,361.3,208.01,207.48,8.89101042]
[1758684561267,67.2486,208.1,207.75,67.3598]
[1758684561468,67.2486,208.1,207.91,0.96]
[1758684561469,212.26,208.05,207.91,0.96]
[1758684561673,67.3076,207.92,207.58,7.52]
[1758684561974,67.2772,208.01,207.69,67.3794]
[1758684562176,67.2772,208.01,207.62,4.3328]
[1758684562177,67.2512,208.09,208.0,0.96]
[1758684562378,67.2045,208.24,207.96,7.52]
[1758684562576,67.1665,208.35,207.99,7.52]
[1758684562776,67.2474,208.1,207.99,7.52]
[1758684563082,67.2474,208.1,207.79,67.3466]
[1758684563083,67.2384,208.13,207.87,8.89101042]
[1758684563270,67.2637,208.05,207.88,7.52]
[1758684563477,67.2569,208.07,207.77,7.47]
[1758684563672,67.2521,208.09,207.78,67.3493]
[1758684563977,67.2708,208.03,207.67,8.89101042]
[1758684564176,67.2695,208.03,207.75,67.3596]
[1758684564374,67.2358,208.14,207.79,67.3444]
[1758684564573,67.2358,208.14,207.67,202.1549]
[1758684564574,67.263,208.05,207.82,7.47]
[1758684564774,231.45101042,208.12,207.82,7.47]
[1758684564972,67.3169,207.89,207.45,70.58152499]
[1758684565276,222.54,207.88,207.45,79.47253541]
[1758684565478,67.328,207.85,207.54,67.4264]
[1758684565680,8.89101042,207.9,207.53,67.4303]
[1758684565978,8.89101042,207.95,207.68,67.3804]
[1758684566178,8.89101042,208.1,207.78,67.3487]
[1758684566382,76.11201042,208.18,207.84,67.3288]
[1758684566577,8.89101042,208.25,207.92,67.3018]
[1758684566880,67.1791,208.31,207.92,67.3018]
[1758684566881,67.1793,208.31,207.98,67.284]
[1758684567078,67.1511,208.4,208.06,67.2575]
[1758684567272,67.1511,208.4,208.08,74.7207]
[1758684567473,228.97835358,208.46,208.07,228.26]
[1758684567474,0.55835358,208.46,208.2,8.89101042]
[1758684567671,67.0833,208.61,208.33,7.47]
[1758684567874,67.0638,208.67,208.36,8.89101042]
[1758684568075,67.0561,208.7,208.4,7.47]
[1758684568274,67.0505,208.71,208.4,7.47]
[1758684568477,67.0366,208.76,208.46,8.89101042]
[1758684568676,67.0223,208.8,208.47,74.5953]
[1758684568881,67.006,208.85,208.54,7.47]
[1758684569083,66.9903,208.9,208.6,67.0825]
[1758684569378,0.55647699,208.91,208.73,7.47]
[1758684569582,66.9171,209.13,208.79,7.47]
[1758684569771,66.887,209.22,208.89,7.47]
[1758684569972,66.8583,209.31,208.96,7.47]
[1758684570173,0.55538138,209.33,209.01,7.47]
[1758684570174,67.40778138,209.33,209.01,7.47]
[1758684570370,67.40778138,209.33,209.04,7.47]
[1758684570575,0.55538138,209.33,209.04,7.47]
[1758684570879,66.8136,209.45,209.1,66.9242]
[1758684571073,66.8073,209.47,209.21,7.47]
[1758684571272,66.7941,209.51,209.21,236.77]
[1758684571477,71.0793,209.54,209.21,7.47]